[Event "10th Beirut Open-ch 2019"]
[Site "Beirut"]
[Date "2019.04.30"]
[Round "5.17"]
[White "Habash, Mohamad"]
[Black "Salameh, Sleiman"]
[Result "1/2-1/2"]
[ECO "E81"]
[WhiteElo "1806"]
[BlackElo "1621"]
[PlyCount "81"]
[EventDate "2019.04.25"]
[EventType "swiss"]
[EventRounds "9"]
[EventCountry "LBN"]
[TimeControl "5400+30"]

1. d4 Nf6 2. c4 c6 3. Nc3 d6 4. e4 g6 5. f3 Bg7 6. Bg5 O-O 7. Qd2 Re8 8. Nge2 Nbd7 9. O-O-O Qa5 10. Ng3 a6 11. h4 h5 12. Kb1 b5 13. Nd5 Qd8 14. Nxf6+ Nxf6 15. c5 dxc5 16. dxc5 Qxd2 17. Rxd2 Be6 18. Be2 Nd7 19. Be3 Ne5 20. b3 a5 21. Rhd1 a4 22. b4 Nc4 23. Bxc4 Bxc4 24. Bd4 Bh6 25. Rf2 Red8 26. f4 a3 27. Rdd2 Bxf4 28. Rxf4 e5 29. Rf6 Rxd4 30. Rxd4 exd4 31. Rxc6 Ra4 32. Rd6 Rxb4+ 33. Kc1 Bxa2 34. Ne2 Rb1+ 35. Kc2 Rb2+ 36. Kc1 Rxe2 37. c6 Be6 38. Rxe6 fxe6 39. c7 a2 40. c8=Q+ Kf7 41. Qd7+ 1/2-1/2

[Event "10th Beirut Open-ch 2019"]
[Site "Beirut"]
[Date "2019.04.30"]
[Round "5.18"]
[White "Kabalan, Farah"]
[Black "Moughames, Ronald"]
[Result "0-1"]
[ECO "B34"]
[WhiteElo "1602"]
[BlackElo "1721"]
[PlyCount "82"]
[EventDate "2019.04.25"]
[EventType "swiss"]
[EventRounds "9"]
[EventCountry "LBN"]
[TimeControl "5400+30"]

1. e4 c5 2. Nf3 Nc6 3. d4 cxd4 4. Nxd4 g6 5. Nc3 Bg7 6. Be3 Nf6 7. Nxc6 bxc6 8. e5 Nd5 9. Nxd5 cxd5 10. Qxd5 Rb8 11. Bc4 O-O 12. O-O-O Qc7 13. Bb3 Bxe5 14. Bxa7 Bxb2+ 15. Kxb2 Qxa7 16. h4 d6 17. Qf3 h5 18. Qf4 Kg7 19. Rhe1 Be6 20. Kc1 Qa3+ 21. Kd2 Rfc8 22. Qd4+ Kg8 23. Re3 Bxb3 24. axb3 e5 25. Qa4 Qc5 26. c4 Ra8 27. Qd7 Rc7 28. Qh3 Qd4+ 29. Ke1 Ra1 30. Red3 Qe4+ 31. Kf1 Ra2 32. Rxd6 Qe2+ 33. Kg1 Qxf2+ 34. Kh1 Re2 35. R6d3 e4 36. Rg3 Kg7 37. Kh2 Qf4 38. Kh1 Rf2 39. Rxg6+ fxg6 40. Rd7+ Rxd7 41. Qxd7+ Kh6 0-1

[Event "10th Beirut Open-ch 2019"]
[Site "Beirut"]
[Date "2019.04.30"]
[Round "5.19"]
[White "Arkadan, Adib"]
[Black "Bedrosian, Danielle"]
[Result "0-1"]
[ECO "B00"]
[WhiteElo "1686"]
[BlackElo "1676"]
[PlyCount "120"]
[EventDate "2019.04.25"]
[EventType "swiss"]
[EventRounds "9"]
[EventCountry "LBN"]
[TimeControl "5400+30"]

1. e4 b6 2. d4 Bb7 3. Nc3 g6 4. Nf3 Bg7 5. h4 h6 6. Bd3 d6 7. Be3 Nd7 8. Qd2 Ngf6 9. O-O-O Ng4 10. Kb1 Nxe3 11. Qxe3 O-O 12. g4 Qc8 13. Nd2 c5 14. d5 Ne5 15. f3 Nxd3 16. cxd3 Ba6 17. Ne2 Qd7 18. Nc1 Qb5 19. Nc4 Qa4 20. Qe2 Qd7 21. f4 Qc7 22. h5 b5 23. Ne3 c4 24. g5 hxg5 25. fxg5 Qc5 26. Rh3 Rac8 27. Rdh1 Qd4 28. Nd1 b4 29. Qe3 Qe5 30. Qg3 cxd3 31. Qxe5 Bxe5 32. Nxd3 Bxd3+ 33. Rxd3 Rc4 34. Nf2 Rfc8 35. Rdd1 a5 36. Nd3 Rxe4 37. Rc1 Rxc1+ 38. Rxc1 gxh5 39. Rc8+ Kg7 40. Re8 Rd4 41. Nxe5 dxe5 42. Rxe7 Rxd5 43. Kc2 h4 44. Rc7 h3 45. Kb3 e4 46. Rc2 Rxg5 47. Rh2 f5 48. Rxh3 f4 49. Kc2 f3 50. Kd2 Rg2+ 51. Ke1 Rxb2 52. Rh4 Re2+ 53. Kf1 a4 54. Rh5 Rxa2 55. Re5 Re2 56. Rb5 b3 57. Rb7+ Kf6 58. Rb6+ Kf5 59. Rb5+ Kf4 60. Rb7 b2 0-1

[Event "10th Beirut Open-ch 2019"]
[Site "Beirut"]
[Date "2019.04.30"]
[Round "5.20"]
[White "Djikerian, Rafi"]
[Black "Al Azmi, Khalaf"]
[Result "0-1"]
[ECO "C55"]
[WhiteElo "1833"]
[BlackElo "1740"]
[PlyCount "94"]
[EventDate "2019.04.25"]
[EventType "swiss"]
[EventRounds "9"]
[EventCountry "LBN"]
[TimeControl "5400+30"]

1. e4 e5 2. Bc4 Nf6 3. Nf3 Nc6 4. d3 Be7 5. O-O d6 6. c3 a6 7. b4 O-O 8. h3 Be6 9. Bxe6 fxe6 10. Ng5 Qd7 11. Qb3 Nd8 12. f4 h6 13. Nf3 exf4 14. Nd4 Kh8 15. Nd2 Nh5 16. Ne2 e5 17. Nf3 g5 18. Nh2 Nf6 19. Qc2 Rg8 20. d4 g4 21. h4 Nh5 22. c4 Bxh4 23. dxe5 dxe5 24. Bb2 Bf6 25. Rad1 Qe6 26. Rd5 f3 27. Nc1 Nf4 28. g3 Nxd5 29. exd5 Qf7 30. Qe4 Qg6 31. Qe3 Nf7 32. Nd3 Qg5 33. Qf2 e4 34. Bc1 Qf5 35. Nf4 Ng5 36. Be3 Rae8 37. Qd2 Be5 38. Bd4 Bxd4+ 39. Qxd4+ Qe5 40. Qe3 h5 41. Rd1 Nf7 42. Kf2 Nd6 43. Ne6 Nf5 44. Qf4 e3+ 45. Kg1 Qxf4 46. gxf4 e2 47. Re1 Nh4 0-1

[Event "10th Beirut Open-ch 2019"]
[Site "Beirut"]
[Date "2019.04.30"]
[Round "5.21"]
[White "Berbari, Imad"]
[Black "Al Onizan, Fahad M"]
[Result "1-0"]
[ECO "B07"]
[WhiteElo "1666"]
[BlackElo "1822"]
[PlyCount "57"]
[EventDate "2019.04.25"]
[EventType "swiss"]
[EventRounds "9"]
[EventCountry "LBN"]
[TimeControl "5400+30"]

1. e4 d6 2. d4 Nf6 3. Nc3 g6 4. Bf4 Bg7 5. Qd2 c6 6. O-O-O b5 7. f3 b4 8. Na4 h5 9. Qxb4 Nbd7 10. Bc4 Rb8 11. Qd2 Nb6 12. Nxb6 Qxb6 13. Bb3 a5 14. Qc3 Nd7 15. e5 dxe5 16. dxe5 e6 17. Nh3 O-O 18. Ng5 Nc5 19. Rd6 Ba6 20. Be3 Nxb3+ 21. axb3 Qb5 22. f4 Rbc8 23. Bc5 Rc7 24. Rhd1 Re8 25. Rd8 Rc8 26. R8d7 Bf8 27. Bxf8 Rxf8 28. Qg3 Qb6 29. Nxf7 1-0

[Event "10th Beirut Open-ch 2019"]
[Site "Beirut"]
[Date "2019.04.30"]
[Round "5.22"]
[White "Eid, Wissam"]
[Black "Hasan Ali Prince"]
[Result "0-1"]
[ECO "B90"]
[WhiteElo "1568"]
[BlackElo "1854"]
[PlyCount "124"]
[EventDate "2019.04.25"]
[EventType "swiss"]
[EventRounds "9"]
[EventCountry "LBN"]
[TimeControl "5400+30"]

1. e4 c5 2. Nf3 d6 3. d4 cxd4 4. Nxd4 Nf6 5. Nc3 a6 6. f3 e5 7. Nb3 Be6 8. Bg5 Be7 9. Qd2 Nbd7 10. O-O-O Rc8 11. Kb1 Qc7 12. f4 exf4 13. Bxf4 Ne5 14. Nd4 Bg4 15. Re1 O-O 16. h3 Bd7 17. g4 b5 18. g5 b4 19. Nd1 Nh5 20. Bh2 g6 21. h4 a5 22. Ne3 Bc6 23. Nxc6 Qxc6 24. Nd5 Rfe8 25. Be2 Ng7 26. b3 Ne6 27. Rhg1 Qc5 28. Bd1 Kg7 29. Ref1 Nc7 30. h5 Nxd5 31. exd5 Qc3 32. Bxe5+ Qxe5 33. hxg6 fxg6 34. Qg2 Rf8 35. Re1 Qxg5 36. Qxg5 Bxg5 37. Rxg5 h6 38. Rg2 Rce8 39. Reg1 g5 40. Bg4 Re5 41. Be6 Kg6 42. Kc1 Rf4 43. Kd2 Rd4+ 44. Kc1 h5 45. Rd2 Rde4 46. Kb2 g4 47. a3 Kg5 48. Rf2 h4 49. Rgf1 h3 50. Rf5+ Rxf5 51. Bxf5 Rf4 52. Bd3 h2 53. Rh1 g3 54. Be2 g2 55. Rxh2 g1=Q 56. Rh5+ Kf6 57. Bd3 Qd4+ 58. Ka2 Rh4 59. Rf5+ Ke7 60. Rf1 Rg4 61. Re1+ Kd8 62. Rf1 Rg1 0-1

[Event "10th Beirut Open-ch 2019"]
[Site "Beirut"]
[Date "2019.04.30"]
[Round "5.23"]
[White "Terzian, Kevork"]
[Black "Tarraf, Tarraf"]
[Result "1-0"]
[ECO "A07"]
[WhiteElo "1731"]
[BlackElo "1647"]
[PlyCount "91"]
[EventDate "2019.04.25"]
[EventType "swiss"]
[EventRounds "9"]
[EventCountry "LBN"]
[TimeControl "5400+30"]

1. Nf3 d5 2. d3 g6 3. g3 Bg7 4. Bg2 Nf6 5. Nbd2 O-O 6. O-O c6 7. e4 Bg4 8. h3 Bxf3 9. Qxf3 e6 10. Re1 Nbd7 11. e5 Ne8 12. d4 c5 13. c3 Qb6 14. Nb3 a5 15. Be3 c4 16. Nd2 a4 17. Rab1 Qc6 18. Qg4 Bh8 19. Bg5 Ng7 20. Qe2 b5 21. g4 Rae8 22. Qf3 Rb8 23. h4 h5 24. Bh6 hxg4 25. Qxg4 Kh7 26. Bxg7 Bxg7 27. Nf3 Rh8 28. h5 Nf8 29. Re3 Kg8 30. hxg6 Nxg6 31. Kf1 Kf8 32. Ke2 Bh6 33. Ng5 Ke7 34. Rf3 Rbf8 35. Nxf7 Rxf7 36. Qxg6 Rxf3 37. Bxf3 Qe8 38. Qf6+ Kd7 39. Rh1 Qf8 40. Qxf8 Rxf8 41. Rxh6 a3 42. bxa3 Ra8 43. Bg4 Rxa3 44. Bxe6+ Ke7 45. Bxd5 Rxc3 46. Rh7+ 1-0

[Event "10th Beirut Open-ch 2019"]
[Site "Beirut"]
[Date "2019.04.30"]
[Round "5.24"]
[White "Jabr, Bernard"]
[Black "Sharbel, Marwan"]
[Result "0-1"]
[ECO "D03"]
[WhiteElo "1679"]
[BlackElo "1973"]
[PlyCount "66"]
[EventDate "2019.04.25"]
[EventType "swiss"]
[EventRounds "9"]
[EventCountry "LBN"]
[TimeControl "5400+30"]

1. d4 d5 2. Nf3 Nf6 3. Bg5 Ne4 4. Bf4 e6 5. e3 Nd7 6. Bd3 Ndf6 7. Nbd2 Bd6 8. Ne5 O-O 9. O-O Nxd2 10. Qxd2 Nh5 11. c3 Nxf4 12. exf4 Qh4 13. g3 Qh3 14. Nf3 h6 15. Ne5 Bxe5 16. fxe5 f6 17. f4 f5 18. Rf2 Bd7 19. Be2 Be8 20. Qd1 h5 21. Bf1 Qg4 22. Qxg4 hxg4 23. h3 gxh3 24. Bxh3 Kf7 25. Rh2 Rh8 26. Kg2 Bb5 27. Rah1 Rh6 28. g4 Bd3 29. g5 Rh4 30. Kg3 Rah8 31. g6+ Ke7 32. Rd1 Be4 33. Rdd2 R4h6 0-1

[Event "10th Beirut Open-ch 2019"]
[Site "Beirut"]
[Date "2019.05.01"]
[Round "6.3"]
[White "Cherniaev, Alexander"]
[Black "Dimitrijevic, Aleksandra"]
[Result "1-0"]
[ECO "B07"]
[WhiteElo "2401"]
[BlackElo "2164"]
[Annotator "NA"]
[PlyCount "130"]
[EventDate "2019.04.25"]
[EventType "swiss"]
[EventRounds "9"]
[EventCountry "LBN"]
[SourceTitle "playchess.com"]
[Source "ChessBase"]
[SourceQuality "1"]
[TimeControl "5400+30"]

1. d4 {[%emt 0:05:13]} d6 {[%emt 0:00:51]} 2. e4 {[%emt 0:00:50]} Nf6 {[%emt 0:01:22]} 3. Nc3 {[%emt 0:00:06]} c6 {[%emt 0:02:14]} 4. Nge2 {[%emt 0:02:42]} e5 {[%emt 0:00:08]} 5. h3 {[%emt 0:00:19]} Qc7 {[%emt 0:00:22]} 6. g4 {[%emt 0:00:20]} h6 {[%emt 0:00:12]} 7. Bg2 {[%emt 0:00:16]} Be7 {[%emt 0:00:38]} 8. Be3 {[%emt 0:07:36]} b6 {[%emt 0:00:47]} 9. Ng3 {[%emt 0:02:00]} g6 {[%emt 0:00:08]} 10. Qd2 {[%emt 0:04:24]} h5 {[%emt 0:00:11]} 11. O-O-O {[%emt 0:02:06]} Nbd7 {[%emt 0:00:22]} 12. g5 {[%emt 0:06:17]} Nh7 {[%emt 0:01:09]} 13. h4 {[%emt 0:00:07]} Bb7 {[%emt 0:02:34]} 14. f4 {[%emt 0:09:35]} exf4 {[%emt 0:00:43]} 15. Bxf4 {[%emt 0:00:07]} O-O-O {[%emt 0:02:02]} 16. Kb1 {[%emt 0:09:01]} Rhe8 {[%emt 0:06:44]} 17. a3 {[%emt 0:00:29]} a6 {[%emt 0:01:39]} 18. Rdf1 {[%emt 0:00:33]} f6 {[%emt 0:00:23]} 19. gxf6 {[%emt 0:03:46]} Bxf6 {[%emt 0:00:42]} 20. Nge2 {[%emt 0:00:18]} Kb8 {[%emt 0:02:02]} 21. Bg3 {[%emt 0:02:26]} Ka7 {[%emt 0:00:58]} 22. Rf2 {[%emt 0:00:56]} Re7 {[%emt 0:03:51]} 23. Bh3 {[%emt 0:08:25]} Bg7 {[%emt 0:00:41]} 24. Nf4 {[%emt 0:01:08]} Ndf8 {[%emt 0:04:01]} 25. Re1 {[%emt 0:02:18]} Nf6 {[%emt 0:07:02]} 26. Rff1 {[%emt 0:10:05]} Rde8 {[%emt 0:07:06]} 27. Bg2 {[%emt 0:00:53]} Qd8 {[%emt 0:07:04]} 28. Rd1 {[%emt 0:00:57]} Ka8 {[%emt 0:06:30]} 29. Bf3 {[%emt 0:00:27]} N6h7 {[%emt 0:03:39]} 30. Qg2 {[%emt 0:01:08]} Bh8 $2 {[%emt 0:06:31]} (30... Ka7 31. e5 dxe5) 31. Qh2 {[%emt 0:00:46]} (31. e5 $142) 31... b5 {[%emt 0:01:02]} (31... Rd7 $142 32. Nfe2 Nf6) 32. Qg2 {[%emt 0:02:55]} Rd7 {[%emt 0:03:41]} 33. Nfe2 {[%emt 0:02:47]} ({White should try} 33. e5 $18) 33... Qc8 {[%emt 0:00:42]} 34. Qh2 {[%emt 0:00:34]} Qd8 {[%emt 0:00:51]} 35. Bg2 {[%emt 0:00:44]} (35. e5 $18 {and White stays clearly on top.}) 35... Nf6 {[%emt 0:01:40]} 36. Bh3 {[%emt 0:01:07]} Ng4 {[%emt 0:00:08]} 37. Bxg4 {[%emt 0:00:05]} hxg4 {[%emt 0:00:06]} 38. Rf4 {[%emt 0:00:35]} ({White should try} 38. h5 $16) 38... c5 {[%emt 0:00:07]} 39. Rxg4 {[%emt 0:00:41]} b4 {[%emt 0:00:10]} 40. axb4 {[%emt 0:00:28]} cxb4 {[%emt 0:00:07]} 41. Nd5 {[%emt 0:00:02]} Qa5 {[%emt 0:06:06]} (41... Nh7 $142 42. Rf1 (42. Rxg6 Rxe4 43. Nef4 Nf6 $16) 42... Nf6 43. Nxf6 (43. Rxg6 $2 Nxe4 44. Rf5 Qa5 $19) 43... Bxf6) 42. Bxd6 {[%emt 0:02:48]} Bxd5 {[%emt 0:00:09]} 43. exd5 {[%emt 0:00:04]} Rxe2 {[%emt 0:00:10]} 44. Qxe2 {[%emt 0:00:04]} Rxd6 {[%emt 0:00:08]} 45. h5 {[%emt 0:00:18]} Qxd5 {[%emt 0:01:34]} 46. hxg6 {[%emt 0:00:12]} Bg7 {[%emt 0:00:10]} 47. Rf1 {[%emt 0:01:10]} Ne6 {[%emt 0:01:38]} 48. Qe4 {[%emt 0:03:47]} Qxe4 {[%emt 0:02:23]} 49. Rxe4 {[%emt 0:00:02]} Bxd4 {[%emt 0:00:16]} (49... Kb8 $142 50. c3 Nd8) 50. Rd1 {[%emt 0:02:09]} Kb7 {[%emt 0:02:13]} 51. g7 {[%emt 0:00:38]} Nxg7 {[%emt 0:00:46]} 52. Rdxd4 {[%emt 0:00:07]} Rg6 {[%emt 0:00:49]} 53. Rxb4+ {[%emt 0:00:31]} Kc6 {[%emt 0:00:07]} 54. Rg4 {[%emt 0:00:27]} Rxg4 $18 {[%emt 0:00:11]} 55. Rxg4 {[%emt 0:00:02]} Nf5 {[%emt 0:00:09]} 56. Ka2 {[%emt 0:00:28]} Ne3 {[%emt 0:00:08]} 57. Rh4 {[%emt 0:00:11]} Nf5 {[%emt 0:00:22]} 58. Rh3 {[%emt 0:00:30]} Nd4 {[%emt 0:00:10]} 59. c3 {[%emt 0:00:19]} Nf5 {[%emt 0:00:20]} 60. b4 {[%emt 0:00:24]} Nd6 {[%emt 0:00:11]} 61. Rh6 {[%emt 0:00:33]} Kd5 {[%emt 0:00:06]} 62. Kb3 {[%emt 0:00:06]} Kc6 {[%emt 0:01:02]} 63. Ka4 {[%emt 0:00:09]} Kc7 {[%emt 0:00:06]} 64. Rxd6 {[%emt 0:00:14]} Kxd6 {[%emt 0:00:05]} 65. Ka5 {[%emt 0:00:07]} Kd5 1-0

[Event "10th Beirut Open-ch 2019"]
[Site "Beirut"]
[Date "2019.05.01"]
[Round "6.5"]
[White "Kaloust, Giorgio"]
[Black "El Jawich, Amro"]
[Result "1/2-1/2"]
[ECO "A53"]
[WhiteElo "1919"]
[BlackElo "2238"]
[Annotator "NA"]
[PlyCount "120"]
[EventDate "2019.04.25"]
[EventType "swiss"]
[EventRounds "9"]
[EventCountry "LBN"]
[SourceTitle "playchess.com"]
[Source "ChessBase"]
[SourceQuality "1"]
[TimeControl "5400+30"]

1. d4 {[%emt 0:00:08]} Nf6 {[%emt 0:00:00]} 2. c4 {[%emt 0:00:14]} d6 {[%emt 0:00:21]} 3. Nc3 {[%emt 0:00:16]} Nbd7 {[%emt 0:00:14]} 4. e4 {[%emt 0:00:08]} e5 {[%emt 0:00:34]} 5. d5 {[%emt 0:00:06]} Nc5 {[%emt 0:01:29]} 6. f3 {[%emt 0:01:04]} a5 {[%emt 0:00:32]} 7. Be3 {[%emt 0:00:31]} g6 {[%emt 0:04:07]} 8. Qd2 {[%emt 0:02:40] A53: Old Indian Defence without Nf3} Bg7 {[%emt 0:01:01]} 9. h4 $146 {[%emt 0:03:14]} ({Predecessor:} 9. Nge2 Bd7 10. O-O-O h5 11. Kb1 Qb8 12. Nc1 O-O 13. Be2 a4 14. h3 Nh7 15. g4 f5 16. gxf5 gxf5 {1-0 (36) Ratkovic,M (2378)-Saric,S (2422) Kragujevac 2016}) 9... Nh5 {[%emt 0:06:15]} 10. Nge2 {[%emt 0:03:25]} f5 {[%emt 0:08:16]} 11. exf5 {[%emt 0:02:55]} gxf5 {[%emt 0:00:34]} 12. O-O-O {[%emt 0:00:52]} O-O {[%emt 0:10:00]} 13. g4 {[%emt 0:17:34]} fxg4 {[%emt 0:00:45]} 14. fxg4 {[%emt 0:00:04]} Bxg4 {[%emt 0:03:55]} 15. Rg1 {[%emt 0:01:33]} Nf6 {[%emt 0:19:35]} 16. Bg5 {[%emt 0:03:08]} (16. Bxc5 $1 $11 dxc5 17. Re1) 16... h5 {[%emt 0:03:50]} 17. Ng3 {[%emt 0:06:31]} Qe8 {[%emt 0:14:45]} 18. Be2 {[%emt 0:04:18]} Qg6 {[%emt 0:11:21]} 19. Rdf1 {[%emt 0:06:28]} Bxe2 {[%emt 0:04:44]} 20. Qxe2 {[%emt 0:00:20]} Ng4 {[%emt 0:00:56]} 21. Qc2 {[%emt 0:12:17]} e4 {[%emt 0:06:33]} ({Better is} 21... Nd3+ $15 22. Kb1 Rf2 23. Rxf2 Ngxf2) 22. Ncxe4 {[%emt 0:02:00]} Nxe4 {[%emt 0:00:01]} 23. Nxe4 {[%emt 0:01:18]} Rxf1+ {[%emt 0:00:18]} 24. Rxf1 {[%emt 0:00:20]} Rf8 {[%emt 0:00:58]} 25. Rxf8+ {[%emt 0:05:17]} Kxf8 {[%emt 0:00:27]} 26. Ng3 {[%emt 0:02:59]} Qf7 {[%emt 0:00:55]} 27. Qf5 {[%emt 0:03:03]} Qxf5 {[%emt 0:00:09]} 28. Nxf5 {[%emt 0:00:05]} Be5 {[%emt 0:00:53]} 29. Bd8 {[%emt 0:01:16]} c6 {[%emt 0:00:22]} 30. Bxa5 {[%emt 0:02:55]} cxd5 {[%emt 0:00:01]} 31. cxd5 {[%emt 0:00:42]} Ke8 {[%emt 0:01:05]} 32. Kd2 {[%emt 0:02:36]} Nf6 {[%emt 0:00:18]} 33. Bc3 {[%emt 0:01:55]} Nxd5 {[%emt 0:00:42]} 34. Bxe5 {[%emt 0:00:38]} dxe5 {[%emt 0:00:01]} 35. Nd6+ {[%emt 0:00:53]} Kd7 {[%emt 0:00:51]} 36. Nxb7 {[%emt 0:00:25]} Ne7 {[%emt 0:00:39]} 37. Nc5+ {[%emt 0:00:31]} Kc6 {[%emt 0:00:19]} 38. Ne4 {[%emt 0:00:35]} Nf5 {[%emt 0:00:41]} 39. Nf6 {[%emt 0:00:37]} Nxh4 {[%emt 0:00:07]} 40. Nxh5 {[%emt 0:00:04]} Kd5 {[%emt 0:00:30]} 41. Ng3 {[%emt 0:01:29]} Kd4 {[%emt 0:00:53]} 42. Ne2+ {[%emt 0:01:00]} Ke4 {[%emt 0:00:10]} 43. Kc3 {[%emt 0:01:24]} Ke3 {[%emt 0:00:49]} 44. Nc1 {[%emt 0:00:06]} Nf5 {[%emt 0:00:30]} 45. a4 {[%emt 0:00:25]} Nd6 {[%emt 0:00:32]} 46. a5 {[%emt 0:02:05]} Ke4 {[%emt 0:00:02]} 47. b4 {[%emt 0:02:48]} Kd5 {[%emt 0:00:07]} 48. Ne2 {[%emt 0:01:21]} Kc6 {[%emt 0:01:02]} 49. Kb3 {[%emt 0:00:33]} e4 {[%emt 0:00:49]} 50. Nd4+ {[%emt 0:01:32]} Kb7 {[%emt 0:00:26]} 51. Ka4 {[%emt 0:00:52]} e3 {[%emt 0:00:31]} 52. b5 {[%emt 0:00:20]} Nf5 {[%emt 0:00:32]} 53. Ne2 {[%emt 0:01:14]} Nd6 {[%emt 0:00:28]} 54. Kb4 {[%emt 0:00:27]} Ne4 {[%emt 0:00:32]} 55. a6+ {[%emt 0:02:25]} Kb6 {[%emt 0:00:26]} 56. Nc3 {[%emt 0:00:19]} Nf6 {[%emt 0:00:30]} 57. Kc4 $11 {[%emt 0:02:29]} e2 {[%emt 0:00:30]} 58. Nxe2 {[%emt 0:00:15]} Ne8 {[%emt 0:00:01]} 59. Nc3 {[%emt 0:01:50]} Nd6+ {[%emt 0:00:13]} 60. Kb4 {[%emt 0:00:13]} Nxb5 {[%emt 0:00:08]} 1/2-1/2

[Event "10th Beirut Open-ch 2019"]
[Site "Beirut"]
[Date "2019.05.01"]
[Round "6.7"]
[White "Hariri, Nizar"]
[Black "Raetsky, Alexander"]
[Result "0-1"]
[ECO "E69"]
[WhiteElo "1958"]
[BlackElo "2394"]
[Annotator "NA"]
[PlyCount "58"]
[EventDate "2019.04.25"]
[EventType "swiss"]
[EventRounds "9"]
[EventCountry "LBN"]
[SourceTitle "playchess.com"]
[Source "ChessBase"]
[SourceQuality "1"]
[TimeControl "5400+30"]

1. c4 Nf6 2. g3 g6 3. Bg2 Bg7 4. Nc3 O-O 5. d4 d6 6. Nf3 Nbd7 7. O-O e5 8. e4 c6 9. h3 Re8 10. dxe5 dxe5 11. Be3 {E69: King's Indian: Fianchetto: 6...Nbd7 7 0-0 e5 8 e4 c6 9 h3} Qe7 12. Qc2 Nc5 13. Nd2 Nh5 $146 ({Predecessor:} 13... Ne6 14. Rad1 h5 15. Nf3 Nh7 16. h4 Nef8 17. Ng5 Nxg5 18. Bxg5 Qb4 {0-1 (48) Kanibalotzka,E (1851)-Heinig,W (2332) Dresden 2008}) 14. Bxc5 Qxc5 15. Na4 Qe7 16. c5 Be6 17. Rad1 f5 18. Nc4 Rf8 19. exf5 gxf5 20. Nd6 e4 21. Nc3 Kh8 22. Ne2 Be5 23. Nd4 Rad8 24. Qe2 Ng7 25. Nxe6 Nxe6 26. g4 Nf4 27. Qe3 Nxg2 28. Kxg2 f4 29. Nf5 $19 (29. Qe1 h5 30. f3) 29... fxe3 0-1

[Event "10th Beirut Open-ch 2019"]
[Site "Beirut"]
[Date "2019.05.01"]
[Round "6.8"]
[White "Najjar, Ahmad"]
[Black "Al Salman, Mohamad"]
[Result "1-0"]
[ECO "D02"]
[WhiteElo "2233"]
[BlackElo "1958"]
[PlyCount "87"]
[EventDate "2019.04.25"]
[EventType "swiss"]
[EventRounds "9"]
[EventCountry "LBN"]
[TimeControl "5400+30"]

1. Nf3 d5 2. d4 Nf6 3. Bf4 Bf5 4. e3 c6 5. Bd3 e6 6. Bxf5 exf5 7. O-O g6 8. Nbd2 Bg7 9. c4 O-O 10. Qb3 Qb6 11. Rfc1 Qxb3 12. Nxb3 Nbd7 13. Na5 dxc4 14. Nxb7 Nb6 15. Bd6 Rfe8 16. Ne5 Ne4 17. Nxc4 Nxc4 18. Rxc4 Nxd6 19. Nxd6 Re6 20. Nb7 Rb8 21. Nc5 Re7 22. Nb3 Rb6 23. Rac1 Ra6 24. a3 Rc7 25. g3 Bf8 26. Nc5 Ra5 27. Nd3 Ra6 28. R1c2 Bd6 29. R4c3 Rb6 30. d5 c5 31. b4 c4 32. Rxc4 Rxc4 33. Rxc4 Rb5 34. Rd4 Kf8 35. Kf1 f6 36. Ke2 Ke7 37. a4 Rb8 38. Rc4 g5 39. f3 h5 40. b5 g4 41. Nf4 Be5 42. Ng6+ Kd6 43. Rc6+ Kxd5 44. Ne7# 1-0

[Event "10th Beirut Open-ch 2019"]
[Site "Beirut"]
[Date "2019.05.01"]
[Round "6.9"]
[White "EL Mahmoud, AbdulAziz"]
[Black "Khoder, Akram"]
[Result "1-0"]
[ECO "A23"]
[WhiteElo "2108"]
[BlackElo "1608"]
[PlyCount "83"]
[EventDate "2019.04.25"]
[EventType "swiss"]
[EventRounds "9"]
[EventCountry "LBN"]
[TimeControl "5400+30"]

1. c4 e5 2. g3 Nf6 3. Nc3 c6 4. Bg2 d5 5. b3 Be6 6. Nf3 Bd6 7. cxd5 Bxd5 8. O-O O-O 9. Qc2 Bxf3 10. Bxf3 Nbd7 11. Bb2 Qe7 12. a3 a5 13. d3 Rac8 14. Rfc1 Rc7 15. Qd2 Rfc8 16. Nd1 b6 17. Ne3 Nc5 18. Nf5 Qe6 19. Qg5 Ne8 20. Bg4 Nxb3 21. Nxd6 Qxd6 22. Bxe5 Qg6 23. Qf4 Nxa1 24. Rxa1 f6 25. Qc4+ Kf8 26. Bxc8 Rxc8 27. Qe6 Rd8 28. Bf4 f5 29. Qb3 b5 30. Rc1 a4 31. Qb4+ Kg8 32. Rc5 Rc8 33. Qc3 Qe6 34. Re5 Qd7 35. Qc5 Nd6 36. Re3 Rd8 37. Bxd6 Qxd6 38. Qxf5 Qxa3 39. Qe6+ Kh8 40. Qxc6 Rb8 41. Re8+ Qf8 42. Rxf8+ 1-0

[Event "10th Beirut Open-ch 2019"]
[Site "Beirut"]
[Date "2019.05.01"]
[Round "6.10"]
[White "Moudallal, Tarek"]
[Black "Hanna, Elie"]
[Result "1-0"]
[ECO "C54"]
[WhiteElo "2043"]
[BlackElo "1726"]
[PlyCount "149"]
[EventDate "2019.04.25"]
[EventType "swiss"]
[EventRounds "9"]
[EventCountry "LBN"]
[TimeControl "5400+30"]

1. e4 e5 2. Nf3 Nc6 3. d4 exd4 4. Bc4 Bc5 5. c3 Nf6 6. cxd4 Bb4+ 7. Bd2 Nxe4 8. Bxb4 Nxb4 9. Bxf7+ Kxf7 10. Qb3+ d5 11. Ne5+ Ke6 12. Qxb4 c5 13. Qa3 cxd4 14. Nf3 Re8 15. O-O Kf7 16. Nxd4 Qb6 17. Nf3 Qd6 18. Qxd6 Nxd6 19. Nc3 Bg4 20. Nd4 Nc4 21. h3 Be6 22. b3 Nd2 23. Rfe1 Rec8 24. Ncb5 Ne4 25. Nxe6 Kxe6 26. f3 a6 27. Nd4+ Ke5 28. Rad1 Rd8 29. fxe4 dxe4 30. Nf3+ Kf4 31. Rxd8 Rxd8 32. Nh2 Rd2 33. g3+ Kf5 34. Rf1+ Ke6 35. Re1 Kd5 36. Nf1 Rxa2 37. Ne3+ Ke5 38. Kf1 Kd4 39. Nf5+ Kd5 40. Nxg7 Rb2 41. Re3 b5 42. Ke1 a5 43. Kd1 a4 44. bxa4 bxa4 45. Kc1 Rf2 46. Nh5 Rf3 47. Re2 Kd4 48. Kc2 a3 49. Kb1 e3 50. Kc2 a2 51. Re1 Rf2+ 52. Kb3 Kd3 53. Nf4+ Ke4 54. Kc3 Kf3 55. Nd3 Rd2 56. g4 Rh2 57. Kd4 e2 58. Ra1 Rxh3 59. Rxa2 Rh2 60. g5 Kg4 61. Ne1 Kxg5 62. Ke3 Rh3+ 63. Kf2 Rh2+ 64. Kg3 Rh1 65. Rxe2 Rh6 66. Nf3+ Kf6 67. Ra2 Rg6+ 68. Kf4 h5 69. Ra6+ Kg7 70. Ra7+ Kh6 71. Kf5 Rb6 72. Ne5 h4 73. Ng4+ Kh5 74. Rh7+ Rh6 75. Rxh6# 1-0

[Event "10th Beirut Open-ch 2019"]
[Site "Beirut"]
[Date "2019.05.01"]
[Round "6.11"]
[White "Salman, Samer"]
[Black "Novikova, Margarita"]
[Result "0-1"]
[ECO "B07"]
[WhiteElo "1505"]
[BlackElo "2032"]
[PlyCount "56"]
[EventDate "2019.04.25"]
[EventType "swiss"]
[EventRounds "9"]
[EventCountry "LBN"]
[TimeControl "5400+30"]

1. e4 d6 2. d4 Nf6 3. Nc3 g6 4. Be3 Bg7 5. f3 O-O 6. h4 e5 7. d5 Nh5 8. Nge2 f5 9. Bg5 Qe8 10. Rg1 Qf7 11. Be3 Nf6 12. Qd2 fxe4 13. fxe4 Ng4 14. O-O-O Nxe3 15. Qxe3 Bg4 16. Rd2 h5 17. Kb1 Kh7 18. Qg3 Bh6 19. Rd3 Nd7 20. b4 a5 21. Nb5 axb4 22. Nxc7 Ra5 23. Rb3 Nc5 24. Ne6 Nxe6 25. dxe6 Bxe6 26. Rxb4 Rxa2 27. Qe1 Rfa8 28. Qc3 R8a3 0-1

[Event "10th Beirut Open-ch 2019"]
[Site "Beirut"]
[Date "2019.05.01"]
[Round "6.12"]
[White "Hassweh, Mwaffaq"]
[Black "Ivanov, Mikhail M"]
[Result "0-1"]
[ECO "B06"]
[WhiteElo "1866"]
[BlackElo "2372"]
[PlyCount "98"]
[EventDate "2019.04.25"]
[EventType "swiss"]
[EventRounds "9"]
[EventCountry "LBN"]
[TimeControl "5400+30"]

1. e4 d6 2. d4 g6 3. Nf3 Bg7 4. Bc4 a6 5. O-O e6 6. Nc3 b5 7. Bb3 Bb7 8. Bg5 Qd7 9. Re1 h6 10. Bh4 c5 11. dxc5 dxc5 12. Bd5 Nc6 13. Bxc6 Qxc6 14. a3 Ne7 15. Nd5 Nxd5 16. exd5 Qxd5 17. c3 O-O 18. Be7 Rfc8 19. Qe2 Qh5 20. Ne5 Qxe2 21. Rxe2 Ra7 22. Bh4 g5 23. Bg3 Rd8 24. h4 f6 25. Ng6 Bd5 26. h5 Bc4 27. Re3 e5 28. a4 bxa4 29. Rxa4 Rd1+ 30. Kh2 Bb5 31. Ra5 c4 32. Re2 Rad7 33. Ra3 Rb1 34. f3 Rdd1 35. Bf2 Rh1+ 36. Kg3 Rxh5 37. Ne7+ Kf7 38. Nf5 Bf8 39. Ra2 Kg6 40. Ne3 f5 41. Nxf5 Kxf5 42. Bb6 Rhh1 43. Bc7 Rhe1 44. Rd2 h5 45. Kh2 Rh1+ 46. Kg3 h4+ 47. Kf2 Bc5+ 48. Rd4 exd4 49. g4+ hxg3+ 0-1